bitfinex/quotes_ETHUSD_20250411
["timestamp","ask_amount","ask_price","bid_price","bid_amount"]
[1744385697664,12.80041,1562.5,1562.1,0.8785]
[1744385697665,6.40101,1562.3,1562.1,0.8785]
[1744385697869,6.40122,1562.2,1562.1,0.05]
[1744385699843,6.98112,1562.2,1562.1,0.05]
[1744385700166,16.07112,1562.2,1562.1,0.05]
[1744385700350,6.6699,1562.2,1562.1,0.05]
[1744385700535,12.80146,1562.4,1562.1,0.05]
[1744385700882,6.40122,1562.2,1562.1,0.05]
[1744385701242,6.40057,1562.4,1562.1,0.05]
[1744385701637,12.80207,1562.3,1562.1,0.05]
[1744385701853,6.40122,1562.2,1562.1,0.05]
[1744385703065,7.707527,1562.4,1562.1,0.05]
[1744385703269,13.06999,1562.5,1562.1,6.45142]
[1744385703480,6.09,1562.5,1562.2,7.16827]
[1744385703779,12.49001,1562.5,1562.2,7.16827]
[1744385703981,6.40093,1562.3,1562.1,0.05]
[1744385704183,6.40052,1562.4,1562.1,12.85314]
[1744385704350,12.4901,1562.5,1562.1,6.45153]
[1744385704555,18.89034,1562.5,1562.1,12.85306]
[1744385704948,6.3999,1562.6,1562.3,13.61093]
[1744385705156,6.40012,1562.5,1562.2,6.40117]
[1744385705486,6.97915,1562.7,1562.2,0.06400869]
[1744385705654,6.97915,1562.7,1562.4,6.40014]
[1744385705868,13.37849,1562.7,1562.4,6.40014]
[1744385706074,6.39973,1562.6,1562.3,6.4007]
[1744385706271,12.48836,1562.9,1562.2,0.7677]
[1744385706272,6.09,1562.9,1562.2,0.7677]
[1744385706507,21.09007,1563.0,1562.6,13.56664]
[1744385706801,21.09008,1563.0,1562.7,6.39906]
[1744385707197,6.39848,1562.9,1562.6,7.16717]
[1744385707403,6.39848,1562.9,1562.6,13.56664]
[1744385707700,6.39848,1562.9,1562.6,7.16717]
[1744385707909,6.39848,1562.9,1562.5,6.39981]
[1744385708072,6.39848,1562.9,1562.6,6.39947]
[1744385708278,6.3988,1562.8,1562.5,6.39988]
[1744385708585,6.3988,1562.8,1562.5,12.79974]
[1744385708787,6.39942,1562.7,1562.4,6.40032]
[1744385708966,12.79785,1562.8,1562.4,6.40039]
[1744385709166,7.85272888,1562.8,1562.5,6.39986]
[1744385709408,0.5799,1563.0,1562.7,6.39892]
[1744385709611,6.09,1563.1,1563.0,6.39795]
[1744385709902,0.5799,1563.4,1562.9,3.7638]
[1744385710063,13.803,1563.7,1563.4,6.39616]
[1744385710268,6.39593,1563.5,1563.2,7.21906]
[1744385710464,13.803,1563.7,1563.0,7.28377695]
[1744385710665,7.77596,1563.6,1563.2,6.39679]
[1744385711013,6.39628,1563.5,1563.1,6.39746]
[1744385711317,6.39645,1563.4,1563.1,6.39746]
[1744385711475,0.5799,1563.5,1563.0,0.822]
[1744385711659,6.39769,1563.1,1562.7,7.16063]
[1744385711861,6.39769,1563.1,1562.7,7.16049]
[1744385712059,12.79554,1563.1,1562.7,7.16049]
[1744385712264,6.39812,1563.0,1562.7,7.16062]
[1744385712507,6.39692,1563.3,1562.9,6.39817]
[1744385712710,6.39714,1563.2,1562.8,12.79754]
[1744385712987,6.39675,1563.3,1562.7,0.7615]
[1744385713186,6.39675,1563.3,1562.9,6.3982]
[1744385713399,9.6699,1563.4,1563.0,6.4619203]
[1744385713400,6.6699,1563.4,1563.0,6.4619203]
[1744385713599,13.06642,1563.4,1563.0,6.39778]
[1744385714017,13.06642,1563.4,1563.1,6.3973]
[1744385714018,6.6699,1563.4,1563.1,6.3973]
[1744385714217,6.97625,1563.4,1563.1,6.3973]
[1744385714401,6.97625,1563.4,1563.0,12.79565]
[1744385714609,6.97625,1563.4,1563.0,14.075215]
[1744385714809,13.37283,1563.4,1563.0,14.075215]
[1744385715014,13.37283,1563.4,1563.0,7.677335]
[1744385715213,13.37276,1563.4,1563.0,14.075095]
[1744385715397,6.97625,1563.4,1563.0,7.677325]
[1744385715600,6.39736,1563.2,1562.8,6.39858]
[1744385715803,6.39736,1563.2,1562.9,6.39832]
[1744385716007,6.39676,1563.3,1562.9,12.79655]
[1744385716337,6.39676,1563.3,1562.9,6.39823]
[1744385716497,12.79387,1563.3,1562.9,6.39823]
[1744385716697,6.39676,1563.3,1562.9,6.39823]
[1744385717137,6.39728,1563.2,1562.9,6.39823]
[1744385717339,6.39713,1563.2,1562.8,12.79726]
[1744385717639,7.094426,1563.3,1562.9,6.39819]
[1744385717797,6.39691,1563.3,1562.7,7.16064]
[1744385717999,6.39691,1563.3,1562.9,6.39822]
[1744385718546,6.39691,1563.3,1563.0,6.3978]
[1744385719050,12.79383,1563.3,1562.9,6.39827]
[1744385719348,0.5799,1563.4,1563.0,6.39756]
[1744385719349,6.97627,1563.4,1563.0,6.39756]
[1744385719552,14.679507,1563.4,1563.0,6.39756]
[1744385719753,6.39679,1563.3,1563.0,6.39756]
[1744385719910,8.282897,1563.4,1563.1,6.3974]
[1744385720109,18.88215,1563.5,1563.1,7.1987]
[1744385720544,6.39632,1563.4,1563.1,7.1987]
[1744385720922,12.79285,1563.4,1563.1,0.8013]
[1744385721116,8.284605,1563.4,1563.1,0.8013]
[1744385721362,6.39674,1563.3,1563.1,0.8013]
[1744385721566,6.39783,1563.1,1562.7,7.1656]
[1744385722068,6.09,1563.3,1562.8,6.46275364]
[1744385722365,6.09,1563.3,1563.0,0.8107]
[1744385722663,6.09,1563.3,1563.1,6.39743]
[1744385722834,6.3965,1563.4,1563.1,6.39743]
[1744385723420,12.79315,1563.4,1563.0,13.60652]
[1744385723622,6.39715,1563.2,1562.9,12.79648]
[1744385723845,6.39725,1563.2,1562.9,6.39824]
[1744385724057,6.39725,1563.2,1562.8,7.17475]
[1744385724256,12.79458,1563.2,1562.8,13.5734]
[1744385724560,12.79457,1563.2,1562.8,13.5734]
[1744385724758,6.39808,1563.0,1562.8,0.7761]
[1744385724964,6.39836,1562.9,1562.6,11.43665971]
[1744385725147,6.39891,1562.8,1562.6,4.25107971]
[1744385725358,6.39918,1562.7,1562.6,4.25107971]
[1744385726365,13.06908,1562.7,1562.6,4.25107971]
[1744385726821,13.06908,1562.7,1562.4,6.40028]
[1744385727019,12.48929,1562.7,1562.4,7.122978]
[1744385727222,12.48929,1562.7,1562.4,7.122998]
[1744385727418,18.8887,1562.7,1562.4,7.122998]
[1744385727836,18.8887,1562.7,1562.4,6.40029]
[1744385728033,6.3996,1562.6,1562.3,13.62821]
[1744385728247,12.48929,1562.7,1562.4,12.80078]
[1744385728248,6.09,1562.7,1562.4,12.80078]
[1744385728459,6.09,1562.7,1562.4,6.40039]
[1744385728664,12.79957,1562.6,1562.3,0.8268]
[1744385728982,6.40012,1562.5,1562.2,10.65218971]
[1744385729141,12.80036,1562.5,1562.2,10.65218971]
[1744385729340,2.468857,1562.6,1562.2,4.25107971]
[1744385729341,6.40054,1562.4,1562.2,4.25107971]
[1744385729569,2.468857,1562.6,1562.1,0.05]
[1744385729570,6.40122,1562.2,1562.1,0.05]
[1744385731392,6.98071,1562.3,1562.1,0.05]
[1744385731709,6.40055,1562.4,1562.1,6.45149]
[1744385731870,6.40084,1562.3,1562.1,0.05]
[1744385732384,6.09,1562.5,1562.2,6.40108]
[1744385732385,12.49007,1562.5,1562.2,6.40108]
[1744385732584,6.40064,1562.4,1562.1,12.85307]
[1744385733305,6.40017,1562.5,1562.1,7.811897]
[1744385733506,6.40017,1562.5,1562.2,6.4009]
[1744385733801,6.6699,1562.6,1562.1,7.812047]
[1744385734100,6.40018,1562.5,1562.2,6.40117]
[1744385734301,12.48973,1562.6,1562.3,6.40079]
[1744385734486,18.88949,1562.6,1562.3,6.40079]
[1744385734709,18.88951,1562.6,1562.3,6.40079]
[1744385734892,14.1103,1562.7,1562.2,0.7755]
[1744385735093,14.11018,1562.7,1562.3,6.40065]
[1744385735409,6.39987,1562.6,1562.3,6.40065]
[1744385735764,22.587668,1562.7,1562.3,6.40065]
[1744385735987,6.3996,1562.6,1562.3,6.40065]
[1744385736186,22.587778,1562.7,1562.4,6.40034]
[1744385736371,16.188298,1562.7,1562.3,12.80134]
[1744385736594,16.188298,1562.7,1562.4,6.40021]
[1744385736798,16.188298,1562.7,1562.5,6.39997]
[1744385736799,7.711,1562.7,1562.5,6.39997]
[1744385737084,6.6699,1562.8,1562.3,0.06400061]
[1744385737283,6.09,1562.8,1562.5,6.39985]
[1744385737510,12.48893,1562.8,1562.5,6.39985]
[1744385737683,6.09,1562.8,1562.7,6.39918]
[1744385737870,13.37538,1563.1,1562.7,7.22922]
[1744385737871,6.97758,1563.1,1562.7,7.22922]
[1744385738075,6.97758,1563.1,1562.7,7.22916]
[1744385738296,6.97758,1563.1,1562.8,6.39877]
[1744385738487,0.5799,1563.1,1562.7,0.8301]
[1744385738826,55.967,1563.2,1563.0,6.39781]
[1744385738991,6.09,1563.2,1563.0,6.39781]
[1744385739181,0.5799,1563.5,1563.0,2.095605]
[1744385739380,6.97597,1563.5,1563.1,12.79475]
[1744385739725,6.39657,1563.4,1563.1,6.39752]
[1744385739887,6.39657,1563.4,1563.1,12.79494]
[1744385740097,13.37195,1563.5,1563.1,12.79494]
[1744385740285,3.297195,1563.5,1563.2,6.3971]
[1744385740489,9.693115,1563.5,1563.2,6.3971]
[1744385740901,0.5799,1563.5,1563.3,6.39672]
[1744385741110,13.801,1563.6,1563.5,6.3959]
[1744385741296,77.06169,1563.9,1563.5,12.7918]
[1744385741635,70.6672,1563.9,1563.6,6.39549]
[1744385741831,77.06169,1563.9,1563.6,6.39549]
[1744385742037,77.06169,1563.9,1563.3,7.18181]
[1744385742038,6.39511,1563.7,1563.4,6.3961]
[1744385742250,12.7904,1563.7,1563.4,6.3961]
[1744385742395,6.39511,1563.7,1563.4,12.79226]
[1744385742596,12.84712548,1563.8,1563.5,6.39589]
[1744385742937,6.45244548,1563.8,1563.5,12.79152]
[1744385743100,20.77526,1563.9,1563.6,6.39546]
[1744385743519,20.77526,1563.9,1563.7,6.39472]
[1744385743520,6.09,1563.9,1563.7,6.39472]
[1744385743724,12.78727,1564.1,1563.8,6.39467]
[1744385743935,6.39362,1564.1,1563.8,6.39467]
[1744385744564,7.332982,1564.1,1563.8,6.39467]
[1744385745054,13.726642,1564.1,1563.8,6.39467]
[1744385745221,6.39393,1564.0,1563.7,6.39497]
[1744385745417,6.39489,1563.8,1563.5,6.39572]
[1744385745652,0.639489,1563.8,1563.3,6.39651]
[1744385745867,6.39528,1563.7,1563.3,12.7931]
[1744385746090,12.79074,1563.7,1563.3,12.7931]
[1744385746217,0.639489,1563.8,1563.5,6.39568]
[1744385746422,18.87898,1563.9,1563.5,13.62413]
[1744385746742,6.39509,1563.7,1563.5,0.8327]
[1744385746952,0.5799,1563.6,1563.3,0.8327]
[1744385747267,12.7931,1563.4,1563.1,6.39745]
[1744385747564,6.39688,1563.3,1563.0,10.64894971]
[1744385747763,6.39688,1563.3,1563.0,17.04673971]
[1744385747966,6.3964,1563.4,1563.1,6.39754]
[1744385748164,6.39601,1563.5,1563.2,6.39684]
[1744385748327,13.0655,1563.6,1563.3,6.39652]
[1744385748659,6.09,1563.6,1563.3,12.79309]
[1744385748864,7.708,1563.7,1563.5,6.39589]
[1744385749240,0.5799,1563.8,1563.2,0.7602]
[1744385749563,6.39571,1563.6,1563.2,7.15697]
[1744385749905,9.9746,1563.8,1562.5,4.25107971]
[1744385749906,6.39768,1563.1,1562.5,4.25107971]
[1744385750196,12.79489,1563.2,1562.8,6.39875]
[1744385750358,7.18247,1563.4,1563.0,6.39783]
[1744385750563,0.7803,1563.6,1563.1,6.46122182]
[1744385750763,49.872,1563.7,1563.1,6.39736]
[1744385751006,0.8228,1563.6,1562.8,7.708]
[1744385751157,12.79467,1563.2,1562.8,7.16944]
[1744385751361,6.39682,1563.3,1562.9,6.39831]
[1744385751672,5.11578753,1563.6,1562.9,6.39831]
[1744385751673,6.3959,1563.5,1562.9,6.39822]
[1744385751869,6.3959,1563.5,1562.8,12.7973]
[1744385751870,6.39729,1563.2,1562.8,12.7973]
[1744385752068,6.39729,1563.2,1562.9,6.39832]
[1744385752275,6.39752,1563.2,1562.8,6.39865]
[1744385752491,6.39752,1563.2,1562.8,7.338515]
[1744385752666,6.39769,1563.1,1562.8,13.737165]
[1744385752868,6.39769,1563.1,1562.8,8.148715]
[1744385753704,12.79543,1563.1,1562.8,0.8102]
[1744385753887,6.39871,1562.9,1562.6,12.70907971]
[1744385754203,6.39918,1562.7,1562.4,5.05137971]
[1744385755005,6.39961,1562.6,1562.4,5.05137971]
[1744385755167,6.39961,1562.6,1562.4,6.19658168]
[1744385755368,12.79939,1562.6,1562.4,5.05137971]
[1744385755580,11.46288753,1562.5,1562.4,4.25107971]
[1744385755910,11.46288753,1562.5,1562.1,0.05]
[1744385755911,7.22712,1562.2,1562.1,0.05]
[1744385756089,6.40204,1562.0,1561.9,5.507119]
[1744385756459,6.40245,1561.9,1561.8,0.02096991]
[1744385757567,7.20745,1561.9,1561.8,0.02096991]
[1744385757767,8.61737462,1561.9,1561.8,0.02096991]
[1744385758401,16.46036215,1561.9,1561.8,0.02096991]
[1744385758706,16.46036215,1561.9,1561.8,9.91e-06]
[1744385759202,11.61737462,1561.9,1561.8,9.91e-06]
[1744385759401,6.40245,1561.9,1561.8,9.91e-06]
[1744385760065,12.80427,1562.0,1561.8,9.91e-06]
[1744385760267,6.40245,1561.9,1561.8,9.91e-06]
[1744385760603,6.40204,1562.0,1561.8,9.91e-06]
[1744385760804,6.39795,1563.1,1561.8,7.0430529]
[1744385760805,16.01718875,1562.4,1561.8,7.0430529]
[1744385761141,6.40181,1562.1,1561.8,6.40273991]
[1744385761404,6.40206,1562.0,1561.8,9.91e-06]
[1744385761708,0.7509,1562.8,1562.3,7.20715]
[1744385761876,7.14969,1562.8,1562.3,0.8065]
[1744385762077,6.39816,1563.0,1562.7,0.7624]
[1744385762279,6.3987,1562.9,1562.7,0.7624]
[1744385762486,6.39862,1562.9,1562.7,0.7624]
[1744385762728,0.639816,1563.0,1562.4,0.7884]
[1744385762729,6.39918,1562.7,1562.4,0.7884]
[1744385762886,6.39995,1562.6,1562.4,0.7884]
[1744385763087,6.40012,1562.5,1562.2,0.7963]
[1744385763276,6.40081,1562.3,1562.2,0.7963]
[1744385763483,12.80114,1562.4,1562.2,0.7963]
[1744385763705,6.4004,1562.4,1561.9,0.7907]
[1744385763981,6.40204,1562.0,1561.8,9.91e-06]
[1744385764607,12.80436,1562.0,1561.8,9.91e-06]
[1744385764818,8.232886,1561.9,1561.8,9.91e-06]
[1744385765041,4.830436,1561.9,1561.4,0.3908869]
[1744385765184,10.21969,1561.5,1561.4,0.3908869]
[1744385765617,9.40409,1561.5,1561.4,0.3908869]
[1744385766325,6.40341,1561.7,1561.4,0.3908869]
[1744385766527,6.40374,1561.6,1561.4,0.3908869]
[1744385767116,6.40409,1561.5,1561.4,0.3908869]
[1744385767289,2.066536,1561.9,1561.4,0.3908869]
[1744385767492,2.066536,1561.9,1561.5,13.60012]
[1744385767493,6.40247,1561.9,1561.5,13.60012]
[1744385767805,6.40221,1562.0,1561.7,6.40308]
[1744385768031,6.40259,1561.9,1561.6,6.40361]
[1744385768350,6.87189408,1562.2,1561.5,0.792]
[1744385768655,6.40252,1561.9,1561.6,6.4035]
[1744385768828,12.80443,1562.0,1561.6,6.4035]
[1744385769031,6.4021,1562.0,1561.7,6.40327]
[1744385769190,12.80444,1562.0,1561.6,7.76344]
[1744385769389,12.80436,1562.0,1561.6,7.76344]
[1744385769601,6.4021,1562.0,1561.6,14.16699]
[1744385769799,6.40167,1562.1,1561.7,6.40295]
[1744385770101,6.40227,1562.0,1561.6,14.16719]
[1744385770412,6.40227,1562.0,1561.7,6.4032]
[1744385770614,6.40131,1562.2,1561.6,1.35995]
[1744385770814,12.8624348,1562.3,1561.8,6.40271]
[1744385771012,12.8624348,1562.3,1561.6,6.40365]
[1744385771013,6.40138,1562.2,1561.6,6.40365]
[1744385771330,3.46892691,1562.4,1562.1,6.40161]
[1744385771331,6.40049,1562.4,1562.1,6.40161]
[1744385771532,7.711,1562.5,1562.2,6.40108]
[1744385771824,7.20936,1562.6,1562.3,6.40077]
[1744385772026,7.20936,1562.6,1562.2,6.40108]
[1744385772027,6.39924,1562.7,1562.4,6.40039]
[1744385772325,7.22496,1563.3,1562.9,6.39811]
[1744385772536,6.39719,1563.2,1562.8,0.06398412]
[1744385772738,12.0947224,1563.5,1562.8,6.39846]
[1744385772908,6.39739,1563.2,1562.9,6.39825]
[1744385773125,6.39682,1563.3,1563.0,6.39788]
[1744385773312,9.39638,1563.4,1563.0,6.39778]
[1744385773313,12.79297,1563.4,1563.0,6.39778]
[1744385773512,6.3969,1563.3,1562.9,7.19358]
[1744385773712,6.39715,1563.2,1562.9,0.7954]
[1744385774039,6.39715,1563.2,1562.9,7.1937]
[1744385774201,6.39679,1563.3,1562.9,13.59188]
[1744385774397,6.39679,1563.3,1562.9,7.19358]
[1744385774611,6.39742,1563.2,1562.9,0.7954]
[1744385774814,6.39742,1563.2,1562.9,7.19375]
[1744385775115,12.79308,1563.4,1563.0,6.39777]
[1744385775441,6.39677,1563.3,1562.9,6.39803]
[1744385775610,0.639677,1563.3,1563.0,6.39762]
[1744385775943,7.036587,1563.3,1562.9,6.3983]
[1744385776108,6.39794,1563.1,1562.7,6.39917]
[1744385776310,6.39796,1563.0,1562.7,12.79818]
[1744385776508,6.39794,1563.1,1562.7,12.79818]
[1744385776734,7.677453,1563.1,1562.7,6.39901]
[1744385776922,7.677453,1563.1,1562.8,6.39872]
[1744385777248,6.39638,1563.4,1563.0,7.1799]
[1744385777446,6.39638,1563.4,1563.1,6.39751]
[1744385777818,12.79294,1563.4,1563.1,6.39751]
[1744385778150,6.39534,1563.7,1563.3,6.39653]
[1744385778451,50.7132,1564.0,1563.4,6.39607]
[1744385778452,6.39477,1563.8,1563.4,6.39607]
[1744385778606,7.034247,1563.8,1563.4,7.16569]
[1744385778803,3.639477,1563.8,1563.2,0.8196]
[1744385779018,6.39549,1563.6,1563.0,7.21752]
[1744385779221,6.39662,1563.4,1563.0,7.21743]
[1744385779433,12.79327,1563.4,1563.0,7.21741]
[1744385779738,6.39673,1563.3,1563.0,7.21741]
[1744385780246,6.39721,1563.2,1563.0,0.8196]
[1744385780547,6.39721,1563.2,1562.8,7.2046]
[1744385780843,6.39797,1563.0,1562.8,0.806]
[1744385781347,7.034277,1563.8,1563.5,6.39578]
[1744385781522,7.0985477,1563.7,1563.4,6.39621]
[1744385781723,7.0985477,1563.7,1563.3,6.39654]
[1744385781947,6.39588,1563.6,1563.2,7.1508]
[1744385782259,0.7034277,1563.7,1563.4,6.39607]
[1744385782568,0.639477,1563.8,1563.2,7.15097]
[1744385782775,6.39585,1563.6,1563.2,13.54794]
[1744385783117,12.79158,1563.6,1563.2,7.15095]
[1744385783358,12.79222,1563.5,1563.2,0.7539]
[1744385783560,6.39702,1563.3,1563.0,7.22876]
[1744385783761,6.39702,1563.3,1563.0,13.62653]
[1744385784077,12.79205,1563.5,1563.1,6.39739]
[1744385784246,6.39635,1563.4,1563.0,7.22873]
[1744385784451,6.39682,1563.3,1563.0,7.22873]
[1744385784609,7.676137,1563.3,1563.0,7.22873]
[1744385784810,14.073217,1563.3,1563.0,0.8309]
[1744385785011,6.39713,1563.2,1563.0,0.8309]
[1744385785276,6.39828,1563.0,1562.7,0.8057]
[1744385785439,12.79656,1563.0,1562.7,7.20472]
[1744385785752,7.677936,1563.0,1562.7,7.20485]
[1744385785955,7.677906,1563.0,1562.7,0.8057]
[1744385786254,6.39891,1562.8,1562.5,0.7565]
[1744385786456,14.10356,1563.1,1562.6,6.39932]
[1744385786457,6.09,1562.9,1562.6,6.39932]
[1744385786759,12.48849,1562.9,1562.6,6.39932]
[1744385786921,6.39893,1562.8,1562.5,7.1564]
[1744385787128,12.48838,1562.9,1562.5,0.7565]
[1744385787347,12.48838,1562.9,1562.6,6.39946]
[1744385787571,6.39878,1562.8,1562.5,0.7565]
[1744385787747,7.978644,1562.9,1562.6,6.39922]
[1744385787944,6.39877,1562.8,1562.5,0.7565]
[1744385788152,6.39934,1562.7,1562.4,6.40031]
[1744385788336,12.798,1562.8,1562.3,0.7746]
[1744385788537,6.09,1562.9,1562.4,6.40019]
[1744385788538,6.3992,1562.7,1562.4,6.40019]
[1744385788836,6.40002,1562.5,1562.3,0.7746]
[1744385789063,12.79988,1562.6,1562.3,0.7746]
[1744385789446,6.40009,1562.5,1562.3,0.7746]
[1744385789750,6.39969,1562.6,1562.1,7.20236]
[1744385790069,13.796,1562.7,1562.2,6.40121]
[1744385790277,6.39977,1562.6,1562.3,6.40076]
[1744385790439,20.19522,1562.7,1562.4,6.40016]
[1744385790866,20.19522,1562.7,1562.2,6.40122]
[1744385790867,6.40015,1562.5,1562.2,6.40122]
[1744385791067,6.09,1562.7,1562.2,6.40122]
[1744385791279,6.09,1563.1,1562.5,0.8287]
[1744385791478,0.7832,1563.2,1562.7,6.39918]
[1744385791636,14.10398,1563.3,1562.9,6.3981]
[1744385791832,14.10398,1563.3,1562.8,7.22735]
[1744385791833,6.39713,1563.2,1562.8,0.8287]
[1744385792069,6.39713,1563.2,1562.4,0.7566]
[1744385792070,6.39969,1562.6,1562.4,0.7566]
[1744385792370,6.39836,1562.9,1562.4,0.7566]
[1744385792371,6.39923,1562.7,1562.4,7.15681]
[1744385792579,6.39923,1562.7,1562.4,0.7566]
[1744385792759,12.79858,1562.7,1562.4,7.15695]
[1744385792964,6.39972,1562.6,1562.2,0.7566]
[1744385793163,6.40034,1562.5,1562.1,6.40153]
[1744385793475,12.80068,1562.5,1562.1,12.80306]
[1744385793643,12.80102,1562.4,1562.1,6.40153]
[1744385793846,6.4,1562.5,1562.0,0.8089]
[1744385794138,12.80286,1562.2,1561.8,12.8055]
[1744385794338,6.40137,1562.2,1561.9,6.40232]
[1744385794643,12.80191,1562.3,1561.9,12.80461]
[1744385794843,6.40126,1562.2,1561.9,6.40229]
[1744385795152,12.80271,1562.2,1561.9,6.40229]
[1744385795452,6.40164,1562.1,1561.8,7.15275]
[1744385795647,6.40245,1562.0,1561.8,0.75]
[1744385795974,6.40245,1562.0,1561.4,0.3908869]
[1744385795975,6.40245,1562.0,1561.6,7.23265]
[1744385796196,6.40248,1561.9,1561.6,7.23264]
[1744385796340,6.4013,1562.2,1561.8,6.4026]
[1744385796542,6.8425,1562.3,1561.8,6.4026]
[1744385796839,6.09,1562.3,1561.7,6.40327]
[1744385797173,6.4,1562.5,1562.2,6.40098]
[1744385797377,12.80017,1562.5,1562.2,6.40098]
[1744385797972,13.28566,1562.7,1562.1,3.8148]
[1744385798173,13.27964884,1562.8,1562.4,6.40026]
[1744385798474,6.88051884,1562.8,1562.5,7.15345]
[1744385799072,6.39893,1562.8,1562.5,7.15345]
[1744385799376,12.7981,1562.8,1562.5,0.7537]
[1744385799574,7.715,1562.9,1562.6,6.39955]
[1744385799575,6.39844,1562.9,1562.6,6.39955]
[1744385799764,12.48818,1563.0,1562.6,12.79886]
[1744385799974,6.39728,1563.2,1562.6,1.355256]
[1744385800281,12.79466,1563.2,1562.8,12.79694]
[1744385800583,6.39718,1563.2,1562.9,6.39814]
[1744385800997,14.6367,1563.4,1562.5,0.7537]
[1744385800998,6.39764,1563.1,1562.5,0.7537]
[1744385801153,12.79472,1563.2,1562.9,6.39835]
[1744385801349,6.39731,1563.2,1562.9,13.54907]
[1744385801554,6.39681,1563.3,1563.0,6.39774]
[1744385801780,21.03301,1563.4,1562.9,0.7525]
[1744385801781,6.09,1563.4,1562.9,7.15082]
[1744385801988,12.48556,1563.6,1563.3,6.39669]
[1744385802491,6.39648,1563.4,1563.0,6.39787]
[1744385802663,6.39674,1563.3,1563.0,6.39782]
[1744385803070,6.39648,1563.4,1563.1,6.39746]
[1744385803275,6.39596,1563.5,1563.2,6.39699]
[1744385803672,12.79207,1563.5,1563.2,6.39699]
[1744385803875,6.39633,1563.4,1563.0,6.39786]
[1744385804081,6.39695,1563.3,1562.9,7.15078]
[1744385804265,6.39743,1563.2,1562.8,6.39861]
[1744385804464,7.037463,1563.1,1562.8,6.39861]
[1744385804683,6.09,1563.4,1562.7,0.8216]
[1744385804870,12.48654,1563.4,1563.0,6.39779]
[1744385805076,6.39725,1563.2,1562.9,6.39827]
[1744385805271,6.39708,1563.3,1562.9,6.39822]
[1744385805575,6.39708,1563.3,1563.0,6.39776]
[1744385806287,18.88284,1563.4,1563.0,12.79557]
[1744385806495,12.48637,1563.4,1563.1,7.2154]
[1744385807005,6.09,1563.4,1563.1,7.27937489]
[1744385807150,12.79393,1563.3,1562.9,13.61734]
[1744385807493,6.39688,1563.3,1563.0,6.39789]
[1744385807853,20.851775,1563.4,1563.0,12.79567]
[1744385808687,14.455255,1563.4,1563.1,6.39754]
[1744385809389,6.09,1563.4,1563.2,6.3971]
[1744385809592,6.09,1563.4,1563.3,6.39672]
[1744385809800,7.715,1563.7,1563.4,6.39608]
[1744385809982,7.715,1563.7,1563.5,6.39567]
[1744385810296,6.39418,1564.0,1563.7,6.39487]
[1744385810661,6.39361,1564.1,1563.8,6.39461]
[1744385810859,12.48344,1564.2,1563.8,6.39454]
[1744385811110,18.8767,1564.2,1563.8,6.39454]
[1744385811477,6.09,1564.2,1563.7,6.39508]
[1744385811801,6.09,1564.2,1563.8,7.034108]
[1744385811802,12.48311,1564.2,1563.8,7.034108]
[1744385811961,6.39406,1564.0,1563.6,7.14636]
[1744385812168,6.39406,1564.0,1563.6,7.14632]
[1744385812381,6.39406,1564.0,1563.7,6.39505]
[1744385812580,6.39404,1564.0,1563.7,6.39505]
[1744385812763,12.78821,1564.0,1563.6,7.14632]
[1744385812963,6.39427,1563.9,1563.6,0.7509]
[1744385813203,6.39468,1563.8,1563.5,12.79153]
[1744385813413,6.39468,1563.8,1563.5,6.39574]
[1744385813722,0.48076614,1564.1,1563.9,6.39414]
[1744385813996,12.48322,1564.2,1563.9,6.39414]
[1744385814200,6.09,1564.2,1564.0,6.39363]
[1744385814400,6.44232,1564.4,1564.1,6.39333]
[1744385814902,12.83473,1564.4,1564.0,12.78772]
[1744385815202,12.83476,1564.4,1564.0,12.7876]
[1744385815373,12.83476,1564.4,1564.1,6.39344]
[1744385815374,6.44232,1564.4,1564.1,6.39344]
[1744385815580,0.05,1564.4,1564.1,12.78688]
[1744385815766,0.05,1564.4,1564.2,6.39278]
[1744385815967,0.05,1564.4,1564.3,6.39263]
[1744385817530,0.05,1564.4,1564.2,7.20218]
[1744385817682,0.05,1564.4,1564.3,6.39263]
[1744385818018,0.05,1564.4,1564.2,13.59504]
[1744385818515,0.05,1564.4,1564.2,7.20242]
[1744385818684,0.05,1564.4,1564.3,6.39263]
[1744385819082,0.05,1564.4,1564.3,8.391419]
[1744385820785,0.05,1564.4,1564.3,9.188719]
[1744385821118,0.05,1564.4,1564.3,0.7973]
[1744385821827,0.05,1564.4,1564.2,12.78574]
[1744385822418,6.44246,1564.4,1564.1,6.39338]
[1744385822625,6.44246,1564.4,1563.8,6.39449]
[1744385822626,0.7961,1564.3,1563.8,6.39449]
[1744385822837,6.8861,1564.3,1563.7,7.19506]
[1744385823154,6.09,1564.2,1563.7,7.19515]
[1744385823419,6.44231,1564.4,1563.7,7.19515]
[1744385823420,0.05,1564.4,1564.0,6.39384]
[1744385823624,6.39315,1564.2,1563.9,6.39409]
[1744385823786,6.3936,1564.1,1563.8,12.7891]
[1744385823983,0.8789,1564.4,1564.1,6.39325]
[1744385824183,3.8789,1564.4,1563.8,7.75354]
[1744385824389,6.39289,1564.3,1563.9,6.39413]
[1744385824793,0.05,1564.4,1564.2,6.39267]
[1744385825022,0.05,1564.4,1564.3,6.39263]
[1744385826353,0.05,1564.4,1564.3,7.67116]
[1744385826714,0.05,1564.4,1564.3,7.72156]
[1744385827418,0.05,1564.4,1564.3,7.7854765]